fUST/lending_fUST_20240727
["ID","MTS","AMOUNT","RATE_DAILY","PERIOD"]
[333347963,1722064245285,-150.112233,0.000137,2]
[333347964,1722064245294,-150.112233,0.000137,2]
[333347965,1722064245304,-150.112233,0.000137,2]
[333347966,1722064245313,-1409.0,0.00013717,2]
[333347967,1722064245323,-150.112233,0.000138,2]
[333347968,1722064245333,-150.112233,0.000138,2]
[333347969,1722064245342,-150.112233,0.000138,2]
[333347970,1722064245352,-603.0,0.000138,2]
[333347971,1722064245362,-150.112233,0.000138,2]
[333347972,1722064245371,-150.112233,0.000138,2]
[333347973,1722064245380,-984.01,0.0001385,2]
[333347974,1722064245389,-171.802352,0.00013851,2]
[333347975,1722064245399,-171.802352,0.00013851,2]
[333347976,1722064245408,-151.0,0.00013851,2]
[333347977,1722064245418,-151.0,0.00013851,2]
[333347978,1722064245427,-151.0,0.00013851,2]
[333347979,1722064245436,-152.712921,0.00013851,2]
[333347980,1722064245446,-433.014935,0.00013851,2]
[333347981,1722064245455,-433.014935,0.00013851,2]
[333347982,1722064245464,-151.0,0.00013851,2]
[333347983,1722064245473,-151.0,0.00013852,2]
[333347984,1722064245483,-178.020077,0.00013852,2]
[333347985,1722064245492,-178.020077,0.00013852,2]
[333347986,1722064245501,-512.031,0.00013862,2]
[333347987,1722064245510,-1383.77819087,0.000139,2]
[333347988,1722064245519,-150.112233,0.000139,2]
[333347989,1722064245528,-150.112233,0.000139,2]
[333347990,1722064245537,-150.112233,0.000139,2]
[333347991,1722064245546,-150.112233,0.000139,2]
[333347992,1722064245555,-12502.5956777,0.00013915,2]
[333347993,1722064245564,-200.335889,0.00013915,2]
[333347994,1722064245574,-200.335889,0.00013915,2]
[333347995,1722064245583,-151.0,0.00013915,2]
[333347996,1722064245592,-151.0,0.00013915,2]
[333347997,1722064245601,-156.371243,0.00013924,2]
[333347998,1722064245610,-151.0,0.00013924,2]
[333347999,1722064245620,-497.844879,0.00013924,2]
[333348000,1722064245629,-497.844879,0.00013924,2]
[333348001,1722064245638,-193.802402,0.00013924,2]
[333348002,1722064245647,-193.802402,0.00013924,2]
[333348003,1722064245656,-984.01,0.00013924,2]
[333348004,1722064245665,-984.01,0.00013924,2]
[333348005,1722064245675,-984.01,0.00013924,2]
[333348006,1722064245684,-984.01,0.00013924,2]
[333348007,1722064245693,-984.14198893,0.00013924,2]
[333348008,1722064245703,-26615.02785078,0.00013925,5]
[333348013,1722064245838,-44.43254917,0.00013925,5]
[333348014,1722064245851,-6964.78446958,0.00013925,2]
[333348048,1722064246499,-28111.37521325,0.00013925,2]
[333348051,1722064246919,-154.76013108,0.00013283,2]
[333348052,1722064246931,-30718.16763858,0.00013925,2]
[333348053,1722064246945,-11517.90127873,0.00013925,2]
[333348055,1722064923785,-300.0,0.00024,120]
[333348056,1722064960894,-600.0,8.923e-05,2]
[333348057,1722064960917,-200.0,8.93e-05,2]
[333348058,1722064960939,-300.0,9.013e-05,2]
[333348059,1722064960962,-300.0,9.013e-05,2]
[333348060,1722064960984,-24900.0,9.014e-05,2]
[333348061,1722064961006,-2741.1423184,9.515e-05,2]
[333348062,1722064961030,-2377.4723899,9.524e-05,2]
[333348063,1722064961053,-250.0,9.567e-05,2]
[333348064,1722064961079,-250.0,9.593e-05,2]
[333348065,1722064961100,-250.0,9.595e-05,2]
[333348066,1722064961123,-250.0,9.619e-05,2]
[333348067,1722064961147,-250.0,9.645e-05,2]
[333348068,1722064961171,-250.0,9.672e-05,2]
[333348069,1722064961195,-250.0,9.698e-05,2]
[333348070,1722064961219,-250.0,9.724e-05,2]
[333348071,1722064961243,-250.0,9.75e-05,2]
[333348072,1722064961266,-250.0,9.777e-05,2]
[333348073,1722064961291,-250.0,9.803e-05,2]
[333348074,1722064961317,-250.0,9.829e-05,2]
[333348075,1722064961343,-250.0,9.855e-05,2]
[333348076,1722064961367,-250.0,9.882e-05,2]
[333348077,1722064961390,-250.0,9.908e-05,2]
[333348078,1722064961413,-420.0,9.914e-05,2]
[333348079,1722064961438,-300.0,9.914e-05,2]
[333348080,1722064961460,-250.0,9.934e-05,2]
[333348081,1722064961485,-250.0,9.96e-05,2]
[333348082,1722064961510,-250.0,9.987e-05,2]
[333348083,1722064961532,-813.00772694,9.999e-05,2]
[333348084,1722064961553,-162.54192868,9.999e-05,2]
[333348085,1722064961575,-519.24134864,9.999e-05,2]
[333348086,1722064961596,-248.79433742,9.999e-05,2]
[333348087,1722064961617,-663.78880537,9.999e-05,2]
[333348088,1722064961639,-154.69833824,9.999e-05,2]
[333348089,1722064961660,-520.97045086,9.999e-05,2]
[333348090,1722064963774,493.89593847,9.999e-05,2]
[333348091,1722064965253,470.12008693,8.834e-05,2]
[333348093,1722064982981,200.0,0.0001,2]
[333348104,1722065010499,273.37336231,9.9e-05,2]
[333348106,1722065027021,187.64804383,9.9e-05,2]
[333348107,1722065039850,806.41574985,9.999e-05,2]
[333348108,1722065040364,11840.92678731,9.9e-05,2]
[333348109,1722065043548,200.0,0.0001,2]
[333348110,1722065044685,1361.22807536,9.9e-05,2]
[333348111,1722065049496,14539.54247196,9.9e-05,2]
[333348112,1722065052458,161.99024362,9.9e-05,2]
[333348113,1722065063908,248.81385722,9.999e-05,2]
[333348114,1722065093973,848.82145141,9.999e-05,2]
[333348115,1722065097888,154.86886505,9.999e-05,2]
[333348116,1722065112518,200.0,0.0001,2]
[333348117,1722065112664,288.23515322,9.999e-05,2]
[333348118,1722065121305,519.24134864,9.999e-05,2]
[333348119,1722065135368,793.95241549,9.999e-05,2]
[333348120,1722065135402,727.02832733,9.999e-05,2]
[333348121,1722065136996,403.88474617,9.999e-05,2]
[333348122,1722065138629,156.28069867,9.999e-05,2]
[333348123,1722065140532,2053.53252552,9.913e-05,2]
[333348124,1722065151230,519.24134864,9.999e-05,2]
[333348125,1722065156632,162.95665863,9.999e-05,2]
[333348126,1722065165560,375.79677847,9.999e-05,2]
[333348127,1722065168270,154.68290005,9.999e-05,2]
[333348128,1722065171009,459.33527907,9.999e-05,2]
[333348129,1722065171656,161.7393251,9.999e-05,2]
[333348130,1722065171724,154.68290005,9.999e-05,2]
[333348131,1722065173094,156.62454437,9.999e-05,2]
[333348132,1722065183137,200.0,0.0001,2]
[333348133,1722065186066,154.68290005,9.999e-05,2]
[333348134,1722065187335,196.33497966,9.999e-05,2]
[333348135,1722065192632,154.68290005,0.0001,2]
[333348136,1722065195687,154.68290005,9.999e-05,2]
[333348137,1722065197197,848.82145141,9.999e-05,2]
[333348138,1722065203822,219.80294038,9.999e-05,2]
[333348139,1722065203990,310.11501072,9.999e-05,2]
[333348140,1722065209955,154.980485,9.999e-05,2]
[333348141,1722065214398,156.50301607,9.999e-05,2]
[333348142,1722065215301,182.98285056,9.999e-05,2]
[333348143,1722065220821,785.33875676,9.999e-05,2]
[333348144,1722065221586,154.68290005,9.999e-05,2]
[333348145,1722065226129,-250.0,0.00010013,2]
[333348146,1722065226152,-250.0,0.00010039,2]
[333348147,1722065226174,-250.0,0.00010065,2]
[333348148,1722065226196,-300.0,0.00010958,2]
[333348149,1722065226217,-166.6666668,0.00010959,2]
[333348150,1722065226241,-174.81,0.00010959,2]
[333348151,1722065226262,-400.0,0.0001137,2]
[333348152,1722065226284,-25.64906053,0.00012054,2]
[333348153,1722065231148,187.36961751,9.999e-05,2]
[333348154,1722065231613,588.59630966,9.999e-05,2]
[333348155,1722065243336,727.02832733,9.999e-05,2]
[333348156,1722065245337,793.95241549,9.999e-05,2]
[333348157,1722065248350,200.0,0.0001,2]
[333348158,1722065250513,200.11396864,9.999e-05,2]
[333348159,1722065253099,-803.95416911,0.00010959,2]
[333348160,1722065256968,459.49737457,9.999e-05,2]
[333348161,1722065258163,232.93216467,9.999e-05,2]
[333348162,1722065261594,162.95665863,9.999e-05,2]
[333348163,1722065274542,157.02218414,9.999e-05,2]
[333348164,1722065282802,154.89916417,9.999e-05,2]
[333348165,1722065283511,265.41958844,9.999e-05,2]
[333348166,1722065287592,154.7825178,9.999e-05,2]
[333348167,1722065288861,542.48310742,9.999e-05,2]
[333348168,1722065289235,218.34362609,9.999e-05,2]
[333348169,1722065293461,195.95298196,9.999e-05,2]
[333348170,1722065293599,405.52042764,9.999e-05,2]
[333348172,1722065301787,168.22778201,9.999e-05,2]
[333348173,1722065301998,849.12192768,9.999e-05,2]
[333348174,1722065302298,156.01947475,9.999e-05,2]
[333348175,1722065303410,156.6131858,9.999e-05,2]
[333348176,1722065313512,200.0,0.0001,2]
[333348177,1722065316697,154.78770702,0.0001,2]
[333348178,1722065317783,176.43256407,9.999e-05,2]
[333348179,1722065321959,7696.96071369,0.0001,2]
[333348180,1722065324811,154.87856281,0.0001,2]
[333348181,1722065326925,155.27627884,9.999e-05,2]
[333348182,1722065328670,319.5081595,9.999e-05,2]
[333348183,1722065333291,209.61899477,9.999e-05,2]
[333348184,1722065333345,727.02832733,9.999e-05,2]
[333348185,1722065333904,403.4655861,9.999e-05,2]
[333348186,1722065340512,11991.7836099,9.999e-05,2]
[333348187,1722065341155,187.36961751,9.999e-05,2]
[333348188,1722065345340,196.0,9.999e-05,2]
[333348189,1722065345368,565.56041639,9.999e-05,2]
[333348190,1722065345697,341.81287151,9.999e-05,2]
[333348191,1722065346104,283.44188651,9.999e-05,2]
[333348192,1722065346607,162.75121245,9.999e-05,2]
[333348193,1722065348129,-300.0,0.00010958,2]
[333348194,1722065348151,-300.0,0.00010958,2]
[333348195,1722065348174,-142.02583089,0.00010959,2]
[333348196,1722065348197,-933.99,0.00010959,2]
[333348197,1722065348224,-778.33,0.00010959,2]
[333348198,1722065348246,-648.61,0.00010959,2]
[333348199,1722065348269,-540.51,0.00010959,2]
[333348200,1722065348294,-450.42,0.00010959,2]
[333348201,1722065348315,-375.35,0.00010959,2]
[333348202,1722065348337,-312.79,0.00010959,2]
[333348203,1722065348360,-260.66,0.00010959,2]
[333348204,1722065348385,-217.22,0.00010959,2]
[333348205,1722065348408,-181.01,0.00010959,2]
[333348206,1722065348432,-150.85,0.00010959,2]
[333348207,1722065348457,-400.0,0.0001137,2]
[333348208,1722065348484,-250.0,0.00011938,2]
[333348209,1722065348508,-250.0,0.00011971,2]
[333348210,1722065348530,-250.0,0.00012003,2]
[333348211,1722065348552,-250.0,0.00012036,2]
[333348212,1722065348574,-420.0,0.00012054,2]
[333348213,1722065348597,-250.0,0.00012069,2]
[333348214,1722065348621,-250.0,0.00012102,2]
[333348215,1722065348643,-250.0,0.00012134,2]
[333348216,1722065348666,-250.0,0.00012167,2]
[333348217,1722065348689,-250.0,0.000122,2]
[333348218,1722065348715,-250.0,0.00012233,2]
[333348219,1722065348738,-241.98033753,0.00012265,2]
[333348220,1722065348772,-8.01966247,0.00012265,2]
[333348221,1722065348795,-250.0,0.00012298,2]
[333348222,1722065348818,-250.0,0.00012331,2]
[333348223,1722065348841,-250.0,0.00012364,2]
[333348224,1722065348864,-250.0,0.00012396,2]
[333348225,1722065352904,754.25,0.00010959,2]
[333348226,1722065358158,155.36988972,0.0001212,2]
[333348227,1722065361585,154.69833824,9.999e-05,2]
[333348228,1722065363895,286.41903479,0.0001,2]
[333348229,1722065368350,727.02832733,0.0001212,2]
[333348230,1722065368395,315.60331665,9.999e-05,2]
[333348231,1722065370922,273.37336231,9.9e-05,2]
[333348232,1722065372431,200.0,0.0001,2]
[333348233,1722065372479,400.0,0.0001137,2]
[333348234,1722065376409,403.4655861,0.0001212,2]
[333348235,1722065378203,319.39685728,0.0001212,2]
[333348236,1722065379714,209.77390903,9.999e-05,2]
[333348237,1722065380329,305.19415375,9.999e-05,2]
[333348238,1722065384228,340.96910741,0.0001212,2]
[333348239,1722065384530,154.69833824,9.999e-05,2]
[333348240,1722065386971,4401.94215241,0.00012118,2]
[333348241,1722065386995,9680.45593732,0.00012118,2]
[333348242,1722065408719,273.37336231,9.9e-05,2]
[333348243,1722065416655,273.37336231,9.9e-05,2]
[333348290,1722065432612,-228.64,0.00010959,2]
[333348292,1722065432622,-190.53,0.00010959,2]
[333348294,1722065432631,-300.0,0.00012117,2]
[333348296,1722065432641,-300.0,0.00012117,2]
[333348298,1722065432651,-10817.60191027,0.00012118,2]
[333348300,1722065432661,-727.02832733,0.0001212,2]
[333348302,1722065432670,-154.93298464,0.0001212,2]
[333348304,1722065432680,-250.0,0.00012429,2]
[333348306,1722065432690,-250.0,0.00012462,2]
[333348308,1722065432700,-250.0,0.00012495,2]
[333348311,1722065432709,-1854.19053923,0.000125,2]
[333348313,1722065432719,-250.0,0.00012527,2]
[333348316,1722065432728,-250.0,0.0001256,2]
[333348318,1722065432738,-413.4893308,0.00012678,2]
[333348320,1722065432748,-600.0,0.00013147,2]
[333348322,1722065432757,-188.026387,0.00013425,2]
[333348324,1722065432768,-636.06861696,0.00013473,2]
[333348326,1722065432779,-5617.82697996,0.000135,2]
[333348328,1722065432788,-2194.35264258,0.00013525,2]
[333348434,1722065438604,-158.77,0.00010959,2]
[333348435,1722065438615,-3423.47433736,0.00013525,2]
[333348436,1722065438626,-404.77649266,0.00013549,2]
[333348437,1722065439612,-5213.05048728,0.00013549,2]
[333348438,1722065439623,-5617.82697994,0.00013574,2]
[333348439,1722065439633,-13101.87275564,0.00013588,2]
[333348440,1722065439647,-1561.47724436,0.00013588,2]
[333348441,1722065439658,-8384.54783512,0.00013588,2]
[333348442,1722065439669,-5617.82697994,0.00013598,2]
[333348443,1722065439679,-88888.0,0.00013598,2]
[333348444,1722065439688,-150.112233,0.000136,2]
[333348445,1722065439697,-376.40446696,0.000136,2]
[333348446,1722065439707,-150.112233,0.000136,2]
[333348447,1722065439717,-29345.9174229,0.00013688,2]
[333348448,1722065439726,-234.79330286,0.00013698,2]
[333348449,1722065439736,-500.0,0.00013698,2]
[333348450,1722065439745,-500.0,0.00013698,2]
[333348451,1722065439755,-500.0,0.00013698,2]
[333348452,1722065439764,-500.0,0.00013698,2]
[333348453,1722065439774,-373.7260233,0.00013698,2]
[333348454,1722065439785,-400.81230328,0.00013698,2]
[333348455,1722065439794,-500.0,0.00013698,2]
[333348456,1722065439805,-500.0,0.00013698,2]
[333348457,1722065439815,-500.0,0.00013698,2]
[333348458,1722065439824,-500.0,0.00013698,2]
[333348459,1722065439834,-500.0,0.00013698,2]
[333348460,1722065439845,-500.0,0.00013698,2]
[333348461,1722065439854,-500.0,0.00013698,2]
[333348462,1722065439863,-500.0,0.00013698,2]
[333348463,1722065439873,-500.0,0.00013698,2]
[333348464,1722065439883,-500.0,0.00013698,2]
[333348465,1722065439892,-150.0,0.00013698,2]
[333348466,1722065439901,-500.0,0.00013698,2]
[333348468,1722065439912,-500.0,0.00013698,2]
[333348469,1722065439921,-500.0,0.00013698,2]
[333348470,1722065439931,-500.0,0.00013698,2]
[333348471,1722065439943,-500.0,0.00013698,2]
[333348472,1722065439954,-500.0,0.00013698,2]
[333348473,1722065439965,-512.11206958,0.00013698,2]
[333348474,1722065439974,-500.0,0.00013698,2]
[333348475,1722065439984,-503.72263157,0.00013698,2]
[333348476,1722065439994,-500.0,0.00013698,2]
[333348477,1722065440003,-500.0,0.00013698,2]
[333348478,1722065440012,-500.0,0.00013698,2]
[333348479,1722065440021,-556.52351305,0.00013698,2]
[333348480,1722065440031,-500.0,0.00013698,2]
[333348481,1722065440041,-500.0,0.00013698,2]
[333348482,1722065440050,-500.0,0.00013698,2]
[333348483,1722065440059,-508.39921414,0.00013698,2]
[333348484,1722065440069,-500.0,0.00013698,2]
[333348485,1722065440078,-500.0,0.00013698,2]
[333348486,1722065440088,-500.0,0.00013698,2]
[333348487,1722065440097,-500.0,0.00013698,2]
[333348488,1722065440107,-505.14755196,0.00013698,2]
[333348489,1722065440116,-332.29130224,0.00013698,2]
[333348491,1722065440125,-500.0,0.00013698,2]
[333348493,1722065440135,-504.23524958,0.00013698,2]
[333348494,1722065440144,-500.0,0.00013698,2]
[333348495,1722065440154,-500.0,0.00013698,2]
[333348496,1722065440163,-500.0,0.00013698,2]
[333348497,1722065440172,-500.0,0.00013698,2]
[333348499,1722065440182,-500.0,0.00013698,2]
[333348501,1722065440192,-500.0,0.00013698,2]
[333348502,1722065440203,-501.64656878,0.00013698,2]
[333348503,1722065440214,-506.57066014,0.00013698,2]
[333348504,1722065440224,-500.0,0.00013698,2]
[333348505,1722065440233,-500.0,0.00013698,2]
[333348506,1722065440242,-500.0,0.00013698,2]
[333348507,1722065440251,-500.0,0.00013698,2]
[333348508,1722065440260,-500.0,0.00013698,2]
[333348509,1722065440269,-500.0,0.00013698,2]
[333348513,1722065440278,-500.0,0.00013698,2]
[333348516,1722065440288,-500.0,0.00013698,2]
[333348518,1722065440297,-502.63580816,0.00013698,2]
[333348521,1722065440306,-500.0,0.00013698,2]
[333348523,1722065440316,-500.0,0.00013698,2]
[333348525,1722065440326,-500.0,0.00013698,2]
[333348527,1722065440335,-500.0,0.00013698,2]
[333348528,1722065440344,-1042.85,0.00013698,2]
[333348529,1722065440357,-500.0,0.00013698,2]
[333348530,1722065440366,-500.0,0.00013698,2]
[333348531,1722065440375,-500.0,0.00013698,2]
[333348532,1722065440386,-500.0,0.00013698,2]
[333348533,1722065440398,-500.0,0.00013698,2]
[333348534,1722065440407,-500.0,0.00013698,2]
[333348536,1722065440417,-504.62133,0.00013698,2]
[333348538,1722065440426,-525.52315472,0.00013698,2]
[333348539,1722065440437,-500.0,0.00013698,2]
[333348540,1722065440450,-500.0,0.00013698,2]
[333348542,1722065440461,-614.24581285,0.00013698,2]
[333348544,1722065440470,-500.0,0.00013698,2]
[333348545,1722065440480,-500.0,0.00013698,2]
[333348546,1722065440489,-500.0,0.00013698,2]
[333348547,1722065440499,-500.0,0.00013698,2]
[333348548,1722065440509,-500.0,0.00013698,2]
[333348549,1722065440518,-418.50907211,0.00013698,2]
[333348550,1722065440529,-502.55898061,0.00013698,2]
[333348551,1722065440538,-505.95695251,0.00013698,2]
[333348552,1722065440548,-500.0,0.00013698,2]
[333348553,1722065440556,-500.0,0.00013698,2]
[333348554,1722065440566,-500.0,0.00013698,2]
[333348555,1722065440575,-500.0,0.00013698,2]
[333348556,1722065440585,-500.0,0.00013698,2]
[333348557,1722065440595,-500.0,0.00013698,2]
[333348558,1722065440605,-502.76569526,0.00013698,2]
[333348560,1722065440616,-501.298653,0.00013698,2]
[333348562,1722065440625,-500.0,0.00013698,2]
[333348564,1722065440634,-500.0,0.00013698,2]
[333348565,1722065440644,-1352.1,0.00013698,2]
[333348567,1722065440653,-518.65992511,0.00013698,2]
[333348569,1722065440662,-748.11,0.00013698,2]
[333348571,1722065440671,-500.0,0.00013698,2]
[333348572,1722065440681,-714.9,0.00013698,2]
[333348573,1722065440690,-505.27099133,0.00013698,2]
[333348574,1722065440699,-500.0,0.00013698,2]
[333348575,1722065440709,-500.0,0.00013698,2]
[333348576,1722065440719,-500.0,0.00013698,2]
[333348577,1722065440729,-500.0,0.00013698,2]
[333348578,1722065440739,-500.0,0.00013698,2]
[333348579,1722065440750,-500.0,0.00013698,2]
[333348580,1722065440760,-500.0,0.00013698,2]
[333348581,1722065440770,-500.0,0.00013698,2]
[333348582,1722065440779,-500.0,0.00013698,2]
[333348584,1722065440789,-500.0,0.00013698,2]
[333348585,1722065440798,-691.39,0.00013698,2]
[333348586,1722065440808,-500.0,0.00013698,2]
[333348587,1722065440817,-500.0,0.00013698,2]
[333348588,1722065440826,-500.0,0.00013698,2]
[333348589,1722065440836,-500.0,0.00013698,2]
[333348590,1722065440845,-500.0,0.00013698,2]
[333348591,1722065440854,-756.67,0.00013698,2]
[333348592,1722065440864,-500.50766794,0.00013698,2]
[333348593,1722065440873,-500.0,0.00013698,2]
[333348594,1722065440883,-500.0,0.00013698,2]
[333348595,1722065440892,-500.0,0.00013698,2]
[333348596,1722065440901,-500.0,0.00013698,2]
[333348597,1722065440911,-500.0,0.00013698,2]
[333348598,1722065440920,-505.35325312,0.00013698,2]
[333348599,1722065440929,-500.0,0.00013698,2]
[333348600,1722065440938,-500.0,0.00013698,2]
[333348601,1722065440947,-500.0,0.00013698,2]
[333348602,1722065440956,-500.0,0.00013698,2]
[333348603,1722065440965,-500.0,0.00013698,2]
[333348604,1722065440974,-500.0,0.00013698,2]
[333348606,1722065440983,-500.0,0.00013698,2]
[333348608,1722065440993,-500.0,0.00013698,2]
[333348610,1722065441003,-500.0,0.00013698,2]
[333348612,1722065441013,-500.0,0.00013698,2]
[333348613,1722065441022,-153.53427424,0.00013698,2]
[333348614,1722065441032,-500.0,0.00013698,2]
[333348615,1722065441041,-500.0,0.00013698,2]
[333348616,1722065441050,-500.0,0.00013698,2]
[333348617,1722065441059,-500.0,0.00013698,2]
[333348618,1722065441068,-500.0,0.00013698,2]
[333348619,1722065441077,-500.0,0.00013698,2]
[333348620,1722065441086,-500.0,0.00013698,2]
[333348621,1722065441096,-500.0,0.00013698,2]
[333348622,1722065441105,-500.0,0.00013698,2]
[333348623,1722065441115,-500.0,0.00013698,2]
[333348624,1722065441125,-500.0,0.00013698,2]
[333348625,1722065441134,-500.0,0.00013698,2]
[333348626,1722065441143,-520.71849195,0.00013698,2]
[333348627,1722065441153,-500.0,0.00013698,2]
[333348628,1722065441162,-503.57049156,0.00013698,2]
[333348629,1722065441171,-500.0,0.00013698,2]
[333348630,1722065441180,-500.0,0.00013698,2]
[333348631,1722065441190,-500.0,0.00013698,2]
[333348632,1722065441199,-762.48,0.00013698,2]
[333348633,1722065441208,-500.0,0.00013698,2]
[333348634,1722065441218,-500.0,0.00013698,2]
[333348635,1722065441227,-915.51,0.00013698,2]
[333348636,1722065441236,-500.0,0.00013698,2]
[333348637,1722065441245,-500.0,0.00013698,2]
[333348638,1722065441254,-500.0,0.00013698,2]
[333348639,1722065441263,-500.0,0.00013698,2]
[333348640,1722065441273,-503.93951742,0.00013698,2]
[333348641,1722065441283,-286.68811163,0.00013698,2]
[333348642,1722065441293,-500.0,0.00013698,2]
[333348643,1722065441302,-500.80298381,0.00013698,2]
[333348644,1722065441311,-475.56671008,0.00013698,2]
[333348645,1722065441321,-500.0,0.00013698,2]
[333348646,1722065441330,-500.0,0.00013698,2]
[333348647,1722065441339,-525.44,0.00013698,2]
[333348648,1722065441350,-504.07197194,0.00013698,2]
[333348649,1722065441359,-500.0,0.00013698,2]
[333348650,1722065441368,-500.0,0.00013698,2]
[333348651,1722065441378,-500.0,0.00013698,2]
[333348652,1722065441387,-500.0,0.00013698,2]
[333348653,1722065441398,-500.0,0.00013698,2]
[333348654,1722065441407,-500.0,0.00013698,2]
[333348655,1722065441416,-500.0,0.00013698,2]
[333348656,1722065441427,-502.78747536,0.00013698,2]
[333348657,1722065441436,-1010.41,0.00013698,2]
[333348658,1722065441446,-502.04426339,0.00013698,2]
[333348659,1722065441455,-500.0,0.00013698,2]
[333348660,1722065441465,-500.0,0.00013698,2]
[333348661,1722065441474,-500.0,0.00013698,2]
[333348662,1722065441483,-500.0,0.00013698,2]
[333348663,1722065441492,-500.0,0.00013698,2]
[333348664,1722065441502,-1174.85,0.00013698,2]
[333348665,1722065441511,-500.0,0.00013698,2]
[333348666,1722065441520,-500.0,0.00013698,2]
[333348667,1722065441531,-609.48,0.00013698,2]
[333348668,1722065441542,-500.0,0.00013698,2]
[333348669,1722065441552,-500.0,0.00013698,2]
[333348670,1722065441563,-500.0,0.00013698,2]
[333348671,1722065441573,-500.0,0.00013698,2]
[333348672,1722065441583,-500.0,0.00013698,2]
[333348673,1722065441592,-500.0,0.00013698,2]
[333348674,1722065441602,-500.0,0.00013698,2]
[333348675,1722065441612,-500.0,0.00013698,2]
[333348676,1722065441624,-513.92849081,0.00013698,2]
[333348677,1722065441636,-930.66,0.00013698,2]
[333348678,1722065441647,-500.0,0.00013698,2]
[333348679,1722065441657,-500.0,0.00013698,2]
[333348680,1722065441667,-500.0,0.00013698,2]
[333348681,1722065441676,-500.0,0.00013698,2]
[333348682,1722065441685,-500.0,0.00013698,2]
[333348683,1722065441696,-500.0,0.00013698,2]
[333348684,1722065441707,-500.0,0.00013698,2]
[333348685,1722065441717,-500.0,0.00013698,2]
[333348686,1722065441728,-500.0,0.00013698,2]
[333348687,1722065441738,-500.0,0.00013698,2]
[333348688,1722065441748,-521.44232075,0.00013698,2]
[333348689,1722065441757,-500.0,0.00013698,2]
[333348690,1722065441767,-685.87,0.00013698,2]
[333348691,1722065441776,-1441.07,0.00013698,2]
[333348692,1722065441786,-500.0,0.00013698,2]
[333348693,1722065441798,-500.0,0.00013698,2]
[333348694,1722065441807,-500.0,0.00013698,2]
[333348695,1722065441816,-500.0,0.00013698,2]
[333348696,1722065441827,-500.0,0.00013698,2]
[333348697,1722065441837,-500.0,0.00013698,2]
[333348698,1722065441847,-500.0,0.00013698,2]
[333348699,1722065441858,-500.0,0.00013698,2]
[333348700,1722065441867,-500.0,0.00013698,2]
[333348701,1722065441877,-693.52,0.00013698,2]
[333348702,1722065441886,-500.0,0.00013698,2]
[333348703,1722065441895,-500.0,0.00013698,2]
[333348704,1722065441904,-500.0,0.00013698,2]
[333348705,1722065441914,-500.0,0.00013698,2]
[333348706,1722065441924,-500.0,0.00013698,2]
[333348707,1722065441935,-500.0,0.00013698,2]
[333348708,1722065441947,-500.0,0.00013698,2]
[333348709,1722065441958,-500.0,0.00013698,2]
[333348710,1722065441967,-500.0,0.00013698,2]
[333348711,1722065441976,-596.84,0.00013698,2]
[333348712,1722065441985,-500.0,0.00013698,2]
[333348713,1722065441995,-500.0,0.00013698,2]
[333348714,1722065442004,-500.0,0.00013698,2]
[333348715,1722065442014,-500.0,0.00013698,2]
[333348716,1722065442023,-1938.81,0.00013698,2]
[333348717,1722065442033,-500.0,0.00013698,2]